bitfinex/quotes_SOLUSD_20241105
["timestamp","ask_amount","ask_price","bid_price","bid_amount"]
[1730819978170,27.66203825,166.72,166.69,6.0991]
[1730819978388,14.9898,166.78,166.69,6.0991]
[1730819978389,27.66203825,166.74,166.71,0.1]
[1730819978591,27.66203825,166.73,166.71,0.1]
[1730819978977,27.66203825,166.72,166.7,0.1]
[1730819979288,27.66203825,166.72,166.68,15.8556]
[1730819979289,27.66203825,166.71,166.69,0.1]
[1730819979488,27.66203825,166.71,166.68,15.8556]
[1730819979668,27.66203825,166.7,166.68,15.8556]
[1730819980270,51.56441225,166.69,166.68,15.8556]
[1730819980477,0.12549,166.67,166.65,6.7373091]
[1730819980674,27.66203825,166.66,166.65,6.7373091]
[1730819981270,27.78752825,166.67,166.65,6.7373091]
[1730819981486,27.66203825,166.69,166.65,6.8373091]
[1730819981695,0.12549,166.68,166.65,27.8393091]
[1730819981868,27.66203825,166.67,166.66,0.1]
[1730819982067,27.66203825,166.68,166.66,0.1]
[1730819982993,27.66203825,166.69,166.66,0.1]
[1730819983301,27.66203825,166.69,166.66,6.1001]
[1730819983471,27.66203825,166.7,166.66,6.1001]
[1730819983670,27.66203825,166.7,166.67,0.1]
[1730819983871,14.9916,166.76,166.67,0.1]
[1730819983872,27.66203825,166.71,166.67,0.1]
[1730819984176,27.66203825,166.72,166.69,0.2]
[1730819984581,27.66203825,166.73,166.69,0.2]
[1730819984809,27.66203825,166.73,166.69,0.1]
[1730819984997,27.66203825,166.7,166.69,0.1]
[1730819985189,27.66203825,166.7,166.68,0.1]
[1730819985376,27.66203825,166.69,166.67,0.1]
[1730819985580,27.66203825,166.69,166.66,21.2008]
[1730819985893,27.66203825,166.69,166.67,0.1]
[1730819986278,27.66203825,166.69,166.66,21.2008]
[1730819986479,27.66203825,166.68,166.66,21.2008]
[1730819986701,27.66203825,166.69,166.66,21.2008]
[1730819987102,27.66203825,166.68,166.66,15.1006]
[1730819987277,27.66203825,166.68,166.66,0.2]
[1730819987484,23.902374,166.7,166.65,6.7373091]
[1730819987679,23.902374,166.7,166.65,0.3105091]
[1730819987680,51.56441225,166.66,166.65,0.3105091]
[1730819988879,57.56461225,166.66,166.65,0.3105091]
[1730819989698,27.78752825,166.66,166.65,0.3105091]
[1730819990280,27.66203825,166.66,166.65,0.3105091]
[1730819990909,5.9999,166.67,166.65,0.3105091]
[1730819991105,10.12668321,166.73,166.65,0.3105091]
[1730819991287,27.66203825,166.66,166.65,0.3105091]
[1730819991487,51.56441225,166.66,166.65,0.3105091]
[1730819992889,57.56461225,166.66,166.65,0.3105091]
[1730819994023,109.68694462,166.66,166.65,0.3105091]
[1730819994222,43.776884,166.65,166.57,6.4821091]
[1730819994402,27.66203825,166.58,166.57,6.4821091]
[1730819994724,27.66203825,166.58,166.57,6.3821091]
[1730819994897,27.66203825,166.58,166.57,6.4821091]
[1730819995400,6.0021,166.61,166.57,6.3821091]
[1730819995716,27.66203825,166.58,166.57,6.3821091]
[1730819996406,27.66203825,166.58,166.57,6.4821091]
[1730819996614,27.78752825,166.58,166.57,0.3105091]
[1730819997499,57.56751225,166.58,166.57,0.3105091]
[1730819998009,51.56441225,166.58,166.57,0.3105091]
[1730819998207,57.56751225,166.58,166.57,0.3105091]
[1730819999335,47.2343208,166.58,166.57,0.3105091]
[1730819999699,41.2312208,166.58,166.57,0.3105091]
[1730820000631,17.4543368,166.58,166.57,0.3105091]
[1730820001119,41.2312208,166.58,166.57,0.3105091]
[1730820001610,0.12549,166.56,166.49,6.0063]
[1730820001915,0.12549,166.56,166.48,27.5647091]
[1730820001916,17.3288468,166.5,166.48,27.5647091]
[1730820002125,17.3288468,166.5,166.48,27.6647091]
[1730820002421,17.3288468,166.53,166.5,0.2]
[1730820002593,17.3288468,166.53,166.48,59.9103559]
[1730820002594,17.3288468,166.57,166.53,0.1]
[1730820002800,85.0003,166.67,166.56,0.1]
[1730820003013,17.3288468,166.61,166.57,22.8602]
[1730820003194,4.4493494,166.6,166.57,22.8602]
[1730820003407,6.0002,166.66,166.57,22.8602]
[1730820003615,17.3288468,166.61,166.59,0.1]
[1730820003920,17.3288468,166.63,166.6,0.1]
[1730820004117,17.3288468,166.63,166.57,40.1890468]
[1730820004424,17.3288468,166.64,166.6,6.1023]
[1730820004794,17.3288468,166.63,166.6,6.1023]
[1730820005221,17.3288468,166.63,166.6,21.1083]
[1730820005423,27.70190872,166.63,166.6,21.1083]
[1730820005808,27.70190872,166.63,166.57,50.36210872]
[1730820005809,27.70190872,166.61,166.58,0.2]
[1730820006009,27.82739872,166.62,166.58,0.2]
[1730820006396,27.82739872,166.62,166.58,6.2028]
[1730820006703,0.12549,166.62,166.58,6.2028]
[1730820006898,27.70190872,166.65,166.59,27.80190872]
[1730820007209,23.902374,166.64,166.59,27.90190872]
[1730820007514,27.70190872,166.67,166.61,27.80190872]
[1730820007716,27.70190872,166.66,166.61,0.1]
[1730820007909,27.70190872,166.68,166.62,27.90190872]
[1730820008115,27.70190872,166.68,166.64,0.1]
[1730820008316,27.70190872,166.69,166.64,0.1]
[1730820008511,6.1816,166.74,166.64,0.1]
[1730820008512,27.70190872,166.68,166.64,6.1008]
[1730820009824,27.70190872,166.69,166.65,0.1]
[1730820010128,27.70190872,166.72,166.66,49.86000872]
[1730820010815,27.70190872,166.71,166.66,22.1581]
[1730820011126,27.70190872,166.67,166.64,15.1024]
[1730820011630,27.70190872,166.68,166.64,15.1024]
[1730820012122,27.70190872,166.68,166.64,21.1033]
[1730820012909,0.12549,166.68,166.64,21.1033]
[1730820013429,27.82739872,166.68,166.64,21.1033]
[1730820014499,0.12549,166.68,166.64,21.1033]
[1730820014703,27.70190872,166.71,166.66,0.1]
[1730820014903,33.69920872,166.74,166.69,0.1]
[1730820015113,27.70190872,166.74,166.69,0.1]
[1730820015324,33.69880872,166.76,166.71,0.1]
[1730820015525,24.025315,166.77,166.72,27.80190872]
[1730820015706,28.01241782,166.78,166.72,27.80190872]
[1730820015903,34.00851782,166.78,166.72,27.80190872]
[1730820016125,27.70190872,166.77,166.72,0.1]
[1730820016328,6.3066091,166.78,166.72,0.1]
[1730820016329,27.70190872,166.75,166.72,0.1]
[1730820016530,27.70190872,166.73,166.71,0.1]
[1730820016902,27.70190872,166.74,166.71,0.1]
[1730820017312,27.70190872,166.75,166.71,0.1]
[1730820017524,0.12549,166.76,166.72,27.80190872]
[1730820017726,28.01241782,166.78,166.73,0.1]
[1730820018025,0.3105091,166.78,166.76,0.1]
[1730820019126,28.01241782,166.78,166.76,0.1]
[1730820019645,27.70190872,166.77,166.73,0.1]
[1730820019928,0.12549,166.77,166.73,0.2]
[1730820020115,28.01241782,166.78,166.72,48.79480872]
[1730820020312,27.70190872,166.76,166.72,21.0929]
[1730820020510,27.70190872,166.76,166.73,0.1]
[1730820021618,27.70190872,166.75,166.71,0.1]
[1730820021815,27.70190872,166.76,166.71,6.0983]
[1730820022015,0.12549,166.77,166.73,0.1]
[1730820022324,0.3105091,166.78,166.75,27.90190872]
[1730820022719,0.3105091,166.78,166.76,0.1]
[1730820023122,0.3105091,166.78,166.77,27.70190872]
[1730820023334,0.3105091,166.78,166.77,27.90190872]
[1730820023522,0.3105091,166.78,166.77,33.89810872]
[1730820024524,0.3105091,166.78,166.77,69.58460872]
[1730820025614,0.3105091,166.78,166.77,49.48460872]
[1730820025814,0.3105091,166.78,166.76,14.9912]
[1730820026014,0.3105091,166.78,166.76,15.0912]
[1730820026218,0.3105091,166.78,166.77,0.1]
[1730820026732,0.3105091,166.78,166.76,20.9878]
[1730820027036,0.3105091,166.78,166.76,14.9912]
[1730820028628,27.70190872,166.77,166.72,57.83450872]
[1730820028815,27.70190872,166.77,166.72,36.2306]
[1730820029012,27.70190872,166.76,166.72,36.0306]
[1730820029221,27.70190872,166.76,166.73,0.1]
[1730820029424,0.3105091,166.78,166.73,0.1]
[1730820030437,17.59382588,166.78,166.73,0.1]
[1730820030637,17.28331678,166.76,166.72,36.0306]
[1730820031137,17.28331678,166.73,166.7,0.1]
[1730820032013,17.28331678,166.73,166.7,6.0987]
[1730820032619,17.28331678,166.72,166.69,14.9978]
[1730820032930,17.28331678,166.72,166.68,16.3549]
[1730820033134,17.28331678,166.72,166.68,22.4544]
[1730820033338,17.28331678,166.73,166.68,22.4544]
[1730820033723,17.28331678,166.72,166.67,12.2697]
[1730820033921,17.28331678,166.71,166.68,0.1]
[1730820034232,17.28331678,166.69,166.65,21.1012]
[1730820034422,17.28331678,166.7,166.65,21.1012]
[1730820034615,70.12549,166.77,166.54,47.304616]
[1730820034616,17.28331678,166.67,166.61,0.1]
[1730820034835,17.28331678,166.68,166.63,0.1]
[1730820035229,17.28331678,166.67,166.63,0.1]
[1730820035751,23.51941678,166.72,166.61,21.007]
[1730820035752,17.28331678,166.65,166.61,21.007]
[1730820035927,17.28331678,166.65,166.61,21.107]
[1730820036121,17.28331678,166.64,166.59,6.0024]
[1730820036540,17.28331678,166.63,166.59,6.0024]
[1730820036855,17.28331678,166.64,166.59,6.0024]
[1730820037042,17.28331678,166.64,166.6,0.1]
[1730820037227,17.28331678,166.62,166.57,38.29451678]
[1730820037541,27.70769058,166.61,166.57,21.1112]
[1730820037742,27.70769058,166.62,166.57,21.1112]
[1730820038138,27.70769058,166.6,166.54,49.50119058]
[1730820038344,0.12549,166.63,166.54,27.8979]
[1730820038345,27.70769058,166.59,166.54,27.8979]
[1730820038645,27.70769058,166.58,166.54,6.1044]
[1730820038834,27.70769058,166.58,166.53,15.0116]
[1730820039141,6.0031,166.58,166.49,15.0156]
[1730820039449,6.0031,166.58,166.48,0.3105091]
[1730820039450,27.70769058,166.51,166.48,0.3105091]
[1730820039945,27.83318058,166.53,166.48,0.3105091]
[1730820040153,27.70769058,166.56,166.5,27.70769058]
[1730820040323,23.902374,166.57,166.52,27.70769058]
[1730820040518,23.776884,166.58,166.53,27.70769058]
[1730820040719,23.776884,166.58,166.51,0.1]
[1730820040720,27.70769058,166.58,166.51,0.1]
[1730820041033,51.48457458,166.57,166.51,27.90769058]
[1730820041445,23.776884,166.57,166.52,27.70769058]
[1730820041635,27.70769058,166.59,166.53,27.70769058]
[1730820042042,27.70769058,166.58,166.52,27.70769058]
[1730820042246,23.776884,166.57,166.52,27.70769058]
[1730820042945,23.776884,166.57,166.52,33.71289058]
[1730820043148,57.48827458,166.57,166.51,33.71309058]
[1730820043443,23.776884,166.57,166.52,27.70769058]
[1730820043647,27.83318058,166.57,166.51,48.72719058]
[1730820043945,27.83318058,166.57,166.51,48.92719058]
[1730820044142,0.12549,166.57,166.52,27.70769058]
[1730820044725,27.83318058,166.57,166.51,48.82719058]
[1730820044927,0.12549,166.57,166.52,27.70769058]
[1730820045343,27.70769058,166.61,166.55,27.70769058]
[1730820045547,27.70769058,166.62,166.56,27.70769058]
[1730820046133,27.70769058,166.6,166.54,27.70769058]
[1730820046451,27.70769058,166.57,166.51,21.0195]
[1730820046627,27.70769058,166.53,166.48,0.3105091]
[1730820046829,76.46951751,166.6,166.48,0.3105091]
[1730820046830,27.70769058,166.51,166.48,0.3105091]
[1730820047025,27.70769058,166.5,166.48,0.3105091]
[1730820047862,27.70769058,166.52,166.48,0.3105091]
[1730820048035,27.70769058,166.51,166.48,0.3105091]
[1730820048375,0.12549,166.51,166.48,0.3105091]
[1730820049029,27.83318058,166.51,166.48,0.3105091]
[1730820049454,0.12549,166.51,166.48,0.3105091]
[1730820049827,27.83318058,166.51,166.48,0.3105091]
[1730820050534,0.12549,166.51,166.48,0.3105091]
[1730820050947,6.0044,166.55,166.48,28.01819968]
[1730820051141,27.70769058,166.53,166.49,6.0063]
[1730820051751,23.902374,166.54,166.48,0.3105091]
[1730820051752,27.70769058,166.5,166.48,0.3105091]
[1730820052151,0.12549,166.51,166.48,6.3171091]
[1730820052450,0.12549,166.51,166.48,21.3339091]
[1730820055736,0.12549,166.52,166.48,49.04159968]
[1730820055952,27.83318058,166.52,166.48,21.3339091]
[1730820056253,0.12549,166.52,166.48,21.3339091]
[1730820056759,27.83318058,166.52,166.48,21.3339091]
[1730820056934,0.12549,166.52,166.48,21.3339091]
[1730820057658,0.12549,166.54,166.48,38.66725215]
[1730820057839,17.33334305,166.54,166.48,38.66725215]
[1730820058039,17.33334305,166.55,166.49,17.33334305]
[1730820058239,17.33334305,166.58,166.52,17.33334305]
[1730820058565,24.051332,166.59,166.56,17.33334305]
[1730820058738,17.33334305,166.61,166.56,6.0038]
[1730820058937,23.33534305,166.62,166.56,38.34674305]
[1730820059136,17.33334305,166.61,166.56,21.0134]
[1730820059342,27.71754682,166.59,166.54,6.0042]
[1730820059961,27.71754682,166.6,166.54,48.73314682]
[1730820060258,27.71754682,166.61,166.55,27.71754682]
[1730820060466,27.71754682,166.56,166.51,21.0196]
[1730820060637,70.0,166.62,166.51,21.0196]
[1730820060638,27.71754682,166.55,166.51,21.0196]
[1730820061138,27.71754682,166.56,166.51,21.0196]
[1730820061340,0.12549,166.55,166.51,21.0196]
[1730820061535,27.84303682,166.55,166.51,21.0196]
[1730820061734,0.12549,166.55,166.51,21.0196]
[1730820062343,27.84303682,166.55,166.51,21.0196]
[1730820062542,27.71754682,166.54,166.51,15.014]
[1730820063144,33.72224682,166.54,166.49,6.0063]
[1730820063348,27.84303682,166.53,166.49,6.0063]
[1730820064156,6.0047,166.54,166.48,0.3105091]
[1730820064157,27.71754682,166.51,166.48,0.3105091]
[1730820064369,51.49443082,166.49,166.48,0.3105091]
[1730820064558,23.902374,166.49,166.48,0.3105091]
[1730820064754,0.12549,166.52,166.48,6.3171091]
[1730820065063,0.12549,166.52,166.5,6.006]
[1730820065263,27.71754682,166.56,166.5,33.72354682]
[1730820065444,27.71754682,166.56,166.5,48.73854682]
[1730820065761,27.71754682,166.57,166.51,27.71754682]
[1730820065963,27.71754682,166.58,166.52,27.71754682]
[1730820066344,27.71754682,166.56,166.51,27.71754682]
[1730820066545,27.71754682,166.56,166.5,48.73854682]
[1730820066889,27.71754682,166.54,166.5,21.021]
[1730820067244,27.71754682,166.52,166.48,6.3169091]
[1730820067459,27.84303682,166.51,166.48,0.3105091]
[1730820067941,0.12549,166.51,166.48,6.3172091]
[1730820068144,27.84303682,166.51,166.48,0.3105091]
[1730820068344,23.776884,166.53,166.48,0.3105091]
[1730820068345,27.71754682,166.5,166.48,0.3105091]
[1730820068541,23.776884,166.53,166.48,0.3105091]
[1730820068542,0.12549,166.49,166.48,0.3105091]
[1730820068748,6.13179,166.49,166.48,0.3105091]
[1730820068940,51.61992082,166.49,166.48,0.3105091]
[1730820069364,23.902374,166.49,166.48,0.3105091]
[1730820070068,27.71754682,166.51,166.48,0.3105091]
[1730820070069,0.12549,166.51,166.48,6.3172091]
[1730820070370,27.71754682,166.49,166.48,0.3105091]
[1730820070575,51.61992082,166.49,166.48,0.3105091]
[1730820071071,57.62622082,166.49,166.48,0.3105091]
[1730820071453,51.61992082,166.49,166.48,0.3105091]
[1730820071644,141.61992082,166.49,166.48,0.3105091]
[1730820071978,141.61992082,166.49,166.4,0.3105091]
[1730820071979,20.12549,166.44,166.4,0.3105091]
[1730820072149,51.49443082,166.41,166.4,0.3105091]
[1730820072350,51.61992082,166.41,166.4,0.3105091]
[1730820072672,71.61992082,166.41,166.4,0.3105091]
[1730820073169,105.34666764,166.41,166.4,0.3105091]
[1730820073377,175.34666764,166.41,166.4,0.3105091]
[1730820073578,29.911574,166.41,166.4,0.3105091]
[1730820073753,57.62912082,166.41,166.4,0.3105091]
[1730820074070,77.62912082,166.41,166.4,0.3105091]
[1730820074478,57.62912082,166.41,166.4,0.3105091]
[1730820074979,27.71754682,166.43,166.4,0.3105091]
[1730820075553,27.71754682,166.45,166.4,6.3201091]
[1730820075752,27.71754682,166.44,166.4,6.3201091]
[1730820075980,27.71754682,166.42,166.4,0.3105091]
[1730820076151,6.007,166.47,166.4,0.3105091]
[1730820076152,27.71754682,166.41,166.4,0.3105091]
[1730820076853,99.33746764,166.41,166.4,0.3105091]
[1730820077152,105.34666764,166.41,166.4,0.3105091]
[1730820077356,77.62912082,166.41,166.4,0.3105091]
[1730820077579,27.71754682,166.41,166.4,0.3105091]
[1730820078959,51.61992082,166.41,166.4,0.3105091]
[1730820079167,105.34666764,166.41,166.4,1e-08]
[1730820079353,0.12549,166.39,166.32,0.3105091]
[1730820079678,27.71754682,166.35,166.32,21.3541091]
[1730820080079,27.71754682,166.33,166.32,0.3105091]
[1730820080376,51.61992082,166.33,166.32,0.3105091]
[1730820081651,27.84303682,166.33,166.32,0.3105091]
[1730820083072,23.902374,166.33,166.32,0.3105091]
[1730820083387,0.12549,166.33,166.32,0.3105091]
[1730820083956,23.776884,166.35,166.32,6.3228091]
[1730820084178,0.12549,166.34,166.32,6.3228091]
[1730820084585,27.71754682,166.37,166.32,21.3540091]
[1730820084878,27.71754682,166.36,166.32,21.3540091]
[1730820085052,27.71754682,166.33,166.32,0.3105091]
[1730820086062,51.61992082,166.33,166.32,0.3105091]
[1730820087963,57.63202082,166.33,166.32,0.3105091]
[1730820088381,51.61992082,166.33,166.32,0.3105091]
[1730820088573,23.902374,166.33,166.32,6.3230091]
[1730820088774,27.84303682,166.33,166.32,0.3105091]
[1730820089981,51.61992082,166.33,166.32,0.3105091]
[1730820090177,23.902374,166.33,166.32,0.3105091]
[1730820090681,51.61992082,166.33,166.32,0.3105091]
[1730820091267,29.914474,166.33,166.32,0.3105091]
[1730820091457,51.61992082,166.33,166.32,0.3105091]
[1730820091958,27.71754682,166.36,166.32,0.3105091]
[1730820092164,27.71754682,166.36,166.32,6.3228091]
[1730820092380,27.71754682,166.36,166.32,21.3540091]
[1730820092585,27.71754682,166.37,166.32,21.3540091]
[1730820092965,27.71754682,166.36,166.32,21.3542091]
[1730820093368,27.71754682,166.35,166.32,21.3542091]
[1730820093686,27.71754682,166.36,166.32,21.3542091]
[1730820093896,27.84303682,166.35,166.32,21.3542091]
[1730820094273,0.12549,166.33,166.32,0.3105091]
[1730820094593,51.61992082,166.33,166.32,0.3105091]
[1730820095595,77.63202082,166.33,166.32,0.3105091]
[1730820098076,51.61992082,166.33,166.32,0.3105091]
[1730820098282,23.902374,166.33,166.32,0.3105091]
[1730820098473,51.61992082,166.33,166.32,0.3105091]
[1730820099403,27.71754682,166.36,166.32,6.3230091]
[1730820099595,23.776884,166.36,166.32,6.3230091]
[1730820099901,27.71754682,166.41,166.35,27.71754682]
[1730820100419,6.0085,166.43,166.33,16.3932]
[1730820100587,76.0085,166.43,166.33,16.3932]
[1730820100787,70.1,166.4,166.32,0.3105091]
[1730820100993,70.0,166.36,166.32,0.3105091]
[1730820101203,27.71754682,166.33,166.29,15.8670091]
[1730820101384,27.71754682,166.32,166.29,15.8670091]
[1730820101583,51.61992082,166.31,166.28,6.0519]
[1730820101903,27.71754682,166.29,166.25,15.0375]
[1730820102205,23.776884,166.31,166.25,15.0375]
[1730820102206,27.84303682,166.28,166.25,15.0375]
[1730820102504,23.776884,166.27,166.25,21.0525]
[1730820102686,0.12549,166.26,166.25,21.0525]
[1730820103202,23.776884,166.28,166.25,21.0525]
[1730820103405,0.12549,166.27,166.25,21.0525]
[1730820103709,27.84303682,166.27,166.24,6.6337]
[1730820103908,27.84303682,166.27,166.23,6.3261091]
[1730820103909,51.49443082,166.26,166.23,6.3261091]
[1730820104100,27.84303682,166.25,166.23,0.3105091]
[1730820104700,23.776884,166.24,166.23,0.3105091]
[1730820105004,51.61992082,166.24,166.23,0.3105091]
[1730820105603,57.63522082,166.24,166.23,0.3105091]
[1730820106182,175.35276764,166.24,166.23,0.3105091]
[1730820106789,147.63522082,166.24,166.23,0.3105091]
[1730820107310,147.63522082,166.24,166.17,48.59075592]
[1730820107311,0.12549,166.23,166.17,48.59075592]
[1730820107519,0.12549,166.23,166.18,27.71754682]
[1730820107684,0.12549,166.23,166.2,27.71754682]
[1730820108012,0.12549,166.23,166.19,15.043]
[1730820108013,27.84303682,166.23,166.19,15.043]
[1730820108386,6.0151,166.25,166.16,48.78144682]
[1730820108387,0.12549,166.21,166.16,48.78144682]
[1730820108806,27.84303682,166.21,166.16,21.0639]
[1730820108999,27.71754682,166.23,166.17,27.71754682]
[1730820109202,27.84303682,166.22,166.16,48.78144682]
[1730820109708,23.776884,166.23,166.19,27.71754682]
[1730820109891,27.71754682,166.27,166.21,27.71754682]
[1730820110404,27.71754682,166.24,166.18,27.71754682]
[1730820111013,27.71754682,166.25,166.19,27.71754682]
[1730820111301,0.12549,166.22,166.19,33.73454682]
[1730820112104,27.71754682,166.26,166.2,27.71754682]
[1730820112415,27.71754682,166.29,166.23,27.71754682]
[1730820112585,27.71754682,166.3,166.24,27.71754682]
[1730820113001,27.71754682,166.29,166.24,27.71754682]
[1730820113192,27.71754682,166.3,166.24,27.71754682]
[1730820113403,27.71754682,166.3,166.22,15.7851]
[1730820113404,27.71754682,166.28,166.23,21.0546]
[1730820113588,27.71754682,166.32,166.24,6.5935]
[1730820113791,27.71754682,166.33,166.27,27.71754682]
[1730820114116,27.71754682,166.3,166.24,34.31104682]
[1730820114700,27.71754682,166.31,166.25,27.71754682]
[1730820115325,51.61992082,166.31,166.25,48.76964682]
[1730820115614,0.12549,166.28,166.25,21.0521]
[1730820116229,0.12549,166.28,166.26,27.71754682]
[1730820116731,0.12549,166.28,166.25,48.76964682]
[1730820116920,0.12549,166.28,166.25,21.0521]
[1730820117233,0.12549,166.28,166.25,48.76964682]
[1730820117404,0.12549,166.28,166.25,21.0521]
[1730820117726,0.12549,166.28,166.25,48.76964682]
[1730820118220,23.776884,166.27,166.22,58.54284682]
[1730820118433,0.12549,166.26,166.22,64.55884682]
[1730820118635,0.12549,166.26,166.23,27.71754682]
[1730820118811,23.776884,166.29,166.24,27.71754682]
[1730820119005,0.12549,166.28,166.24,27.71754682]
[1730820119828,0.12549,166.28,166.22,36.8413]
[1730820119829,0.12549,166.28,166.25,6.015]
[1730820120015,51.49443082,166.29,166.22,30.8253]
[1730820120016,27.71754682,166.27,166.22,30.8253]
[1730820120198,23.902374,166.26,166.23,27.71754682]
[1730820120402,23.902374,166.26,166.24,27.71754682]
[1730820120716,0.12549,166.26,166.25,27.71754682]
[1730820120930,27.71754682,166.29,166.24,27.71754682]
[1730820121230,0.12549,166.28,166.23,48.77234682]
[1730820121407,27.84303682,166.28,166.23,15.0394]
[1730820121608,27.84303682,166.28,166.23,21.0551]
[1730820121808,6.0143,166.27,166.23,15.0394]
[1730820122205,0.12549,166.25,166.23,15.0394]
[1730820122928,0.12549,166.25,166.23,42.75694682]
[1730820123124,0.12549,166.25,166.23,48.77264682]
[1730820123320,0.12549,166.25,166.22,15.7851]
[1730820123540,23.776884,166.24,166.2,29.56260959]
[1730820123707,0.12549,166.25,166.21,17.38850959]
[1730820123907,0.12549,166.25,166.21,23.40480959]
[1730820124607,17.51399959,166.25,166.21,6.0163]
[1730820124803,0.12549,166.23,166.2,27.2162]
[1730820126217,41.29088359,166.21,166.17,30.6454]
[1730820126422,6.0159,166.23,166.15,0.3105091]
[1730820126423,0.12549,166.18,166.15,0.3105091]
[1730820126609,87.38850959,166.24,166.16,17.38850959]
[1730820126610,17.38850959,166.22,166.16,17.38850959]
[1730820126811,23.902374,166.22,166.19,17.38850959]
[1730820127030,0.12549,166.22,166.2,17.38850959]
[1730820127334,0.12549,166.22,166.19,17.38850959]
[1730820127517,0.12549,166.22,166.18,17.38850959]
[1730820127829,0.12549,166.22,166.19,17.38850959]
[1730820128036,0.12549,166.22,166.2,6.0168]
[1730820128426,0.12549,166.22,166.19,21.0593]
[1730820128735,0.12549,166.22,166.19,38.44780959]
[1730820129230,0.12549,166.23,166.19,38.44780959]
[1730820129530,0.12549,166.23,166.21,17.38850959]
[1730820129731,0.12549,166.23,166.2,17.38850959]
[1730820129912,23.776884,166.27,166.22,17.38850959]
[1730820130116,23.776884,166.27,166.23,6.0157]
[1730820130320,23.776884,166.25,166.22,15.0397]
[1730820130615,17.38850959,166.24,166.18,17.38850959]
[1730820131027,23.776884,166.23,166.18,17.38850959]
[1730820131241,0.12549,166.22,166.18,17.38850959]
[1730820131533,0.12549,166.22,166.17,17.38850959]
[1730820131710,0.12549,166.22,166.18,38.44990959]
[1730820132624,0.12549,166.22,166.18,21.0614]
[1730820132931,41.16539359,166.21,166.18,15.0439]
[1730820133138,17.51399959,166.2,166.16,6.0179]
[1730820133323,0.12549,166.18,166.16,6.0179]
[1730820133718,0.12549,166.18,166.16,21.0636]
[1730820133939,17.38850959,166.23,166.17,17.38850959]
[1730820134112,0.12549,166.23,166.2,17.38850959]
[1730820135025,70.0,166.29,166.16,68.54350959]
[1730820135026,17.38850959,166.28,166.22,17.38850959]
[1730820135225,17.38850959,166.3,166.24,17.38850959]
[1730820135841,76.5283,166.35,166.26,17.38850959]
[1730820136020,17.38850959,166.32,166.26,17.38850959]
[1730820136727,17.38850959,166.31,166.25,38.44100959]
[1730820136939,17.38850959,166.29,166.25,15.0375]
[1730820137114,17.38850959,166.29,166.23,17.38850959]
[1730820137115,17.38850959,166.28,166.23,23.40410959]
[1730820137315,17.38850959,166.29,166.23,23.40410959]
[1730820137514,23.902374,166.28,166.23,23.40410959]
[1730820137741,47.30488359,166.28,166.23,21.055]
[1730820137943,23.902374,166.26,166.23,15.0394]
[1730820138423,23.902374,166.26,166.21,39.32840959]
[1730820138623,17.38850959,166.25,166.21,6.0164]
[1730820138827,0.12549,166.23,166.21,6.0164]
[1730820139752,0.12549,166.23,166.22,17.38850959]
[1730820140123,0.12549,166.27,166.22,17.38850959]
[1730820140326,0.12549,166.28,166.24,17.38850959]
[1730820140729,17.38850959,166.31,166.26,17.38850959]
[1730820140925,17.38850959,166.3,166.24,17.38850959]
[1730820141145,17.38850959,166.27,166.19,15.0421]
[1730820141343,17.38850959,166.27,166.21,17.38850959]
[1730820141832,23.40300959,166.27,166.21,23.40480959]
[1730820142032,23.902374,166.26,166.21,23.40480959]
[1730820142547,23.902374,166.26,166.17,39.50900959]
[1730820142548,23.776884,166.22,166.17,39.50900959]
[1730820142747,0.12549,166.21,166.17,15.6675]
[1730820143053,0.12549,166.21,166.16,32.43410959]
[1730820143428,0.12549,166.21,166.16,42.88675455]
[1730820144040,0.12549,166.21,166.16,48.90495455]
[1730820144938,0.12549,166.21,166.18,27.84115455]
[1730820146234,0.12549,166.21,166.18,33.85865455]
[1730820146556,0.12549,166.21,166.18,48.90255455]
[1730820146727,0.12549,166.21,166.18,21.0614]
[1730820146926,0.12549,166.21,166.18,48.90255455]
[1730820148247,0.12549,166.21,166.17,27.84115455]
[1730820149634,0.12549,166.21,166.16,33.85935455]
[1730820149843,0.12549,166.21,166.16,48.90505455]
[1730820150230,0.12549,166.21,166.17,27.84115455]
[1730820150448,0.12549,166.21,166.19,27.84115455]
[1730820150753,0.12549,166.21,166.18,27.84115455]
[1730820151128,27.84115455,166.23,166.18,27.84115455]
[1730820151330,4.60192352,166.22,166.18,27.84115455]
[1730820151547,4.60192352,166.22,166.16,21.0639]